Cogmind - Beta 14 @@@ ROGUE MODE // 2024.12.30 @ 02:34:47 // Winter2022/Polymind Player: Alien Result: Destroyed by S-27 Virus with Autogun Performance ------------- Evolutions (3) 1500 Regions Visited (8) 1600 Robots Destroyed (26) 130 Value Destroyed (775) 775 Prototype IDs (6) 120 Alien Tech Used (0) 0 Bonus (4546) 4546 TOTAL SCORE: 8031 Bonus ------- Polymind Skill 3900 Follower Combat Kills 346 Aligned with FarCom 300 Cogmind --------- Core Integrity 0/700 Matter 0/0 Energy 23/25 System Corruption 0% Temperature Cool (0) Movement Core (50) Location -7/Lower Caves Parts ------- > --- POWER (1) -------- (None) > --- PROPULSION (1) --- (None) > --- UTILITY (22) ----- Advanced Launcher Guidance Computer Experimental Core Analyzer EX Chip 1 EX Chip 1 > --- WEAPON (2) ------- (None) > --- INVENTORY (2) ---- (None) Peak State ------------ > --- POWER ------------ Heavy Deuterium Engine > --- PROPULSION ------- Combat Antigrav System > --- UTILITY ---------- Advanced Launcher Guidance Computer Improved Target Analyzer Experimental Core Analyzer Improved Armor Integrity Analyzer EX Chip 1 EX Chip 1 EX Chip 1 EX Chip 1 EX Chip 1 EX Chip 1 EX Chip 1 EX Chip 1 EX Chip 1 EX Chip 1 EX Chip 2 EX Chip 2 EX Chip 2 EX Chip 2 EX Chip 2 EX Chip 2 EX Chip 2 EX Chip 2 > --- WEAPON ----------- AWS/EX-DEC > --- INVENTORY -------- Deploy-a-Sentry [Rating: 99] Favorites ----------- Power Heavy Deuterium Engine Engine Heavy Deuterium Engine Propulsion Combat Antigrav System Leg Aluminum Leg Hover Unit Combat Antigrav System Utility EX Chip 1 Device Heat Sink Processor Advanced Launcher Guidance Computer Hackware EX Chip 1 Weapon AWS/EX-DEC Energy Gun AWS/EX-DEC Build | -11 -10 -10 -10 -9 -8 -7 -7 -7 ------- Run | Yrd Mat Min Exi Min Mat Fac Low Low Slots Evolved . | . . . . . . . . . Power . | . . . . . . . . . Propulsion . | . . . . . . . . . Utility . | . . . . . . . . . Weapon . | . . . . . . . . . Parts Attached . | . . . . . . . . . Power . | . . . . . . . . . Engine . | . . . . . . . . . Core . | . . . . . . . . . Reactor . | . . . . . . . . . Propulsion . | . . . . . . . . . Treads . | . . . . . . . . . Leg . | . . . . . . . . . Wheel . | . . . . . . . . . Hover . | . . . . . . . . . Flight . | . . . . . . . . . Utility . | . . . . . . . . . Device . | . . . . . . . . . Storage . | . . . . . . . . . Processor . | . . . . . . . . . Hackware . | . . . . . . . . . Protection . | . . . . . . . . . Artifact . | . . . . . . . . . Weapon . | . . . . . . . . . Energy Gun . | . . . . . . . . . Energy Cannon . | . . . . . . . . . Ballistic Gun . | . . . . . . . . . Ballistic Cannon . | . . . . . . . . . Launcher . | . . . . . . . . . Special Weapon . | . . . . . . . . . Impact Weapon . | . . . . . . . . . Slashing Weapon . | . . . . . . . . . Piercing Weapon . | . . . . . . . . . Special Melee Weapon . | . . . . . . . . . Unidentified Prototypes . | . . . . . . . . . Parts Lost 21 | . 1 . . . . 1 . 19 Power 2 | . 1 . . . . . . 1 Propulsion . | . . . . . . . . . Utility 18 | . . . . . . 1 . 17 Weapon 1 | . . . . . . . . 1 Highest Loss Streak 7 | . 1 . . . . 1 . 7 To Critical Strikes . | . . . . . . . . . Average Slot Usage (%) 80 | . 66 64 38 96 96 96 92 68 Engine 2 | . 4 . 1 3 3 3 3 1 Leg 8 | . 31 32 . . . . . . Hover 2 | . . . 1 3 3 3 3 2 Device 4 | . 15 16 . . . . . . Processor 10 | . . . 6 15 15 15 15 13 Hackware 45 | . . . 27 69 69 69 65 48 Energy Gun 5 | . 15 16 1 3 3 3 3 . Peak Build Rating 99 | . 5 4 99 99 99 99 97 97 Average Rating 65 | . 3 3 37 99 99 98 97 62 On Entrance 55 | . . 4 . 99 99 99 97 97 Naked Turns 172 | . 15 95 62 . . . . . Heaviest Build 21 | . 2 2 21 21 21 21 21 21 Greatest Support 21 | 3 20 20 21 21 21 21 21 21 Greatest Overweight (x) . | . . . . . . . . . Average Overweight (x) . | . . . . . . . . . Largest Inventory Capacity 2 | . 1 1 2 2 2 2 2 2 Average Capacity 1 | . . . . 2 2 2 2 2 Most Carried 1 | . . . 1 1 1 1 1 1 Average Carried . | . . . . 1 1 1 1 . Final Capacity 2 | . 1 . 2 2 2 2 2 2 Final Carried 1 | . . . 1 1 1 1 1 . Class Distribution -------------------- 71% | Thief 21% | Grunt 7% | Cogmind Dominant Class ---------------- Grunt | -10/Materials Grunt | -10/Mines Cogmind | -10/Exiles Thief | -9/Mines Thief | -8/Materials Thief | -7/Factory Thief | -7/Lower Caves Thief | -7/Lower Caves Resources | -11 -10 -10 -10 -9 -8 -7 -7 -7 ----------- Run | Yrd Mat Min Exi Min Mat Fac Low Low Matter Collected . | . . . . . . . . . Remotely . | . . . . . . . . . Salvage Created 651 | . 18 . . 43 50 271 184 85 Parts 55 | . 3 . . 4 9 22 13 4 Haulers Intercepted . | . . . . . . . . . Recyclers Shooed . | . . . . . . . . . Parts Field Recycled . | . . . . . . . . . Retrieved Matter . | . . . . . . . . . Parts Self-Destructed 10 | . . . . . . . 4 6 Prevented 12 | . . . . . . . 9 3 Kills | -11 -10 -10 -10 -9 -8 -7 -7 -7 ------- Run | Yrd Mat Min Exi Min Mat Fac Low Low Combat Hostiles Destroyed 18 | . 2 . . 3 2 2 7 2 Guns 15 | . 2 . . 3 2 1 6 1 Classes Destroyed 6 | . 1 . . . 3 2 . . Worker 1 | . . . . . . 1 . . Builder 2 | . . . . . . 2 . . Watcher 5 | . . . . . 2 3 . . Swarmer 7 | . 2 . . 3 . 1 1 . Grunt 8 | . . . . . 1 . 5 2 Sentry 3 | . . . . . 1 1 1 . Best Kill Streak 5 | . 1 . . 3 2 5 4 2 Combat Bots Only 4 | . 1 . . 3 1 2 4 2 Max Kills in Single Turn 2 | . 1 . . 1 1 2 1 1 Gunslinging . | . . . . . . . . . Exploded . | . . . . . . . . . Melee . | . . . . . . . . . Uniques/NPCs Destroyed . | . . . . . . . . . Combat | -11 -10 -10 -10 -9 -8 -7 -7 -7 -------- Run | Yrd Mat Min Exi Min Mat Fac Low Low Hostile Shots Fired 232 | . 38 . . 3 4 35 16 136 Missed 102 | . 8 . . . 4 17 4 69 Damage Taken 1558 | . 226 . . 25 . 173 204 930 Core 762 | . 49 . . 8 . 68 43 594 Absorbed by Shields . | . . . . . . . . . Ignored by Resistances 87 | . . . . . . 87 . . Core Remaining (%) 92 | 100 . . . 77 100 . . . Volleys Fired 22 | . 22 . . . . . . . Largest 1 | . 1 . . . . . . . Hottest 40 | . 40 . . . . . . . Shots Fired 76 | . 22 . . 3 9 18 20 4 Gun 76 | . 22 . . 3 9 18 20 4 Cannon . | . . . . . . . . . Launcher . | . . . . . . . . . Special . | . . . . . . . . . Kinetic . | . . . . . . . . . Thermal 22 | . 22 . . . . . . . Explosive . | . . . . . . . . . Electromagnetic 54 | . . . . 3 9 18 20 4 Robot Hit Streak 12 | . 3 . . 9 10 5 10 12 Robot Miss Streak 6 | . 2 . . . 2 6 4 . Penetration Max . | . . . . . . . . . Secondary Targets . | . . . . . . . . . Autonomous 54 | . . . . 3 9 18 20 4 Shots Hit Robots 57 | . 15 . . 3 7 12 16 4 Core Hits 36 | . 2 . . 3 5 11 12 3 Critical Kills . | . . . . . . . . . Critical Parts Destroyed . | . . . . . . . . . Critical Strikes 6 | . . . . 1 1 3 . 1 Corrupt 6 | . . . . 1 1 3 . 1 Melee Attacks . | . . . . . . . . . Impact . | . . . . . . . . . Slashing . | . . . . . . . . . Piercing . | . . . . . . . . . Sneak Attacks . | . . . . . . . . . Combat Hostiles . | . . . . . . . . . Follow-up Attacks . | . . . . . . . . . Damage Inflicted 1312 | . 167 . . 40 154 359 409 183 Guns 1284 | . 167 . . 40 154 359 409 155 Cannons . | . . . . . . . . . Explosions . | . . . . . . . . . Melee . | . . . . . . . . . Ramming 28 | . . . . . . . . 28 Kinetic . | . . . . . . . . . Thermal 167 | . 167 . . . . . . . Explosive . | . . . . . . . . . Electromagnetic 1117 | . . . . 40 154 359 409 155 Impact . | . . . . . . . . . Slashing . | . . . . . . . . . Piercing . | . . . . . . . . . Highest Corruption . | . . . . . . . . . Average Corruption . | . . . . . . . . . Corruption Purged . | . . . . . . . . . Corruption Blocked . | . . . . . . . . . Overload Shots . | . . . . . . . . . Overflow Damage . | . . . . . . . . . Projectiles . | . . . . . . . . . Explosions . | . . . . . . . . . Melee . | . . . . . . . . . Knockbacks . | . . . . . . . . . Impact . | . . . . . . . . . Kinetic . | . . . . . . . . . Secondary . | . . . . . . . . . Self-Inflicted Damage 13 | . . . . . . . . 13 Shots . | . . . . . . . . . Rammed 5 | . . . . . . . . 5 Targets Rammed 5 | . . . . . . . . 5 Kicked . | . . . . . . . . . Crushed . | . . . . . . . . . Highest Temperature 33 | . 20 . . . . 5 33 23 Average Temperature 16 | . 18 . . . . 5 15 11 Received Heat Transfer 318 | . . . . . . 18 135 165 Siege Activations . | . . . . . . . . . Robots Corrupted 3 | . . . . . . 1 1 1 Combat Hostiles 3 | . . . . . . 1 1 1 Parts Fried 7 | . . . . . 2 1 3 1 Impact Corruptions . | . . . . . . . . . Robots Melted . | . . . . . . . . . Combat Hostiles . | . . . . . . . . . Parts Melted 1 | . 1 . . . . . . . Heat Transferred 375 | . 375 . . . . . . . Parts Sabotaged . | . . . . . . . . . Parts Stolen . | . . . . . . . . . Parts Stripped . | . . . . . . . . . Power Chain Reactions . | . . . . . . . . . Alert | -11 -10 -10 -10 -9 -8 -7 -7 -7 ------- Run | Yrd Mat Min Exi Min Mat Fac Low Low Peak Influence 278 | . 40 53 . 70 219 278 . . Initial 99 | . . 15 . . 27 99 . . Average 68 | . 19 25 . 69 104 102 . . Maximum Alert Level 1 | . . . . . 1 1 . . Low Security (%) 97 | 100 100 100 . 100 90 96 . . Level 1 2 | . . . . . 9 3 . . Level 2 . | . . . . . . . . . Level 3 . | . . . . . . . . . Level 4 . | . . . . . . . . . Level 5 . | . . . . . . . . . High Security . | . . . . . . . . . Max Security . | . . . . . . . . . Squads Dispatched 5 | . . . . . 4 1 . . Investigation 1 | . . . . . 1 . . . Extermination 1 | . . . . . . 1 . . Reinforcement 1 | . . . . . 1 . . . Assault . | . . . . . . . . . Garrison 2 | . . . . . 2 . . . Intercept . | . . . . . . . . . Searches Triggered . | . . . . . . . . . Construction Impeded . | . . . . . . . . . Haulers Reinforced . | . . . . . . . . . Active Scanning Responses . | . . . . . . . . . Cargo Convoy Interrupts . | . . . . . . . . . Stealth | -11 -10 -10 -10 -9 -8 -7 -7 -7 --------- Run | Yrd Mat Min Exi Min Mat Fac Low Low Distress Signals 2 | . . . . . 1 1 . . Communications Jammed . | . . . . . . . . . Distress Signals . | . . . . . . . . . Times Spotted 55 | . 7 2 . 2 6 13 7 18 Peak Tracking Total 6 | . 4 . . 2 4 5 4 6 Tactical Retreats 9 | . . . . . 1 3 . 5 Traps | -11 -10 -10 -10 -9 -8 -7 -7 -7 ------- Run | Yrd Mat Min Exi Min Mat Fac Low Low Traps Triggered . | . . . . . . . . . Indirectly . | . . . . . . . . . Trap Hack Attempts . | . . . . . . . . . Triggered . | . . . . . . . . . Disarmed . | . . . . . . . . . Reprogrammed . | . . . . . . . . . Reused . | . . . . . . . . . Traps Extracted . | . . . . . . . . . Installed . | . . . . . . . . . Triggered 1 | . . . . . . . . 1 Objects Rigged 4 | . . . . . . 4 . . Machines | -11 -10 -10 -10 -9 -8 -7 -7 -7 ---------- Run | Yrd Mat Min Exi Min Mat Fac Low Low Machines Disabled . | . . . . . . . . . Max in Single Turn . | . . . . . . . . . Machines Repaired . | . . . . . . . . . Machines Dismantled . | . . . . . . . . . Machines Sabotaged . | . . . . . . . . . Overloaded Fab Kills . | . . . . . . . . . Hacking | -11 -10 -10 -10 -9 -8 -7 -7 -7 --------- Run | Yrd Mat Min Exi Min Mat Fac Low Low Machines Accessed 10 | . . . . . 4 6 . . Terminals 7 | . . . . . 3 4 . . Fabricators . | . . . . . . . . . Repair Stations . | . . . . . . . . . Recycling Units 1 | . . . . . . 1 . . Scanalyzers . | . . . . . . . . . Garrison Access 2 | . . . . . 1 1 . . Total Hacks 67 | . . . . . 30 37 . . Successful 54 | . . . . . 25 29 . . Failed 13 | . . . . . 5 8 . . Catastrophic . | . . . . . . . . . Database Lockouts . | . . . . . . . . . Manual 61 | . . . . . 30 31 . . Terminals 55 | . . . . . 26 29 . . Fabricators . | . . . . . . . . . Repair Stations . | . . . . . . . . . Recycling Units 6 | . . . . . . 6 . . Scanalyzers . | . . . . . . . . . Garrison Access 6 | . . . . . 4 2 . . Terminal Hacks 23 | . . . . . 12 11 . . Robot Schematic 3 | . . . . . 2 1 . . Robot Analysis 6 | . . . . . 5 1 . . Prototype ID Bank 1 | . . . . . . 1 . . Level Access Points 2 | . . . . . 1 1 . . Branch Access Points 2 | . . . . . 1 1 . . Emergency Access Points 1 | . . . . . 1 . . . Machine Index 2 | . . . . . 1 1 . . Alert Level 1 | . . . . . . 1 . . Recall Extermination 1 | . . . . . . 1 . . Zone Layout 4 | . . . . . 1 3 . . Fabricator Hacks . | . . . . . . . . . Repair Station Hacks . | . . . . . . . . . Recycling Unit Hacks 2 | . . . . . . 2 . . Retrieve Components 2 | . . . . . . 2 . . Scanalyzer . | . . . . . . . . . Garrison Access Hacks . | . . . . . . . . . Unauthorized Hacks 29 | . . . . . 13 16 . . Terminals 19 | . . . . . 9 10 . . Track 1 | . . . . . 1 . . . Assimilate 3 | . . . . . 1 2 . . Botnet 4 | . . . . . 1 3 . . Detonate 1 | . . . . . . 1 . . Disrupt 2 | . . . . . 1 1 . . Operators 3 | . . . . . 2 1 . . Skim 5 | . . . . . 3 2 . . Fabricators . | . . . . . . . . . Repair Stations . | . . . . . . . . . Recycling Units 4 | . . . . . . 4 . . Monitor 1 | . . . . . . 1 . . Reject 1 | . . . . . . 1 . . Recyclers 1 | . . . . . . 1 . . Mask 1 | . . . . . . 1 . . Scanalyzers . | . . . . . . . . . Garrison Access 6 | . . . . . 4 2 . . Broadcast 1 | . . . . . 1 . . . Reprogram 2 | . . . . . 1 1 . . Intercept 1 | . . . . . 1 . . . Watchers 2 | . . . . . 1 1 . . Data Cores Recovered . | . . . . . . . . . Used . | . . . . . . . . . Hacking Detections 3 | . . . . . 1 2 . . Full Trace Events . | . . . . . . . . . Feedback Events . | . . . . . . . . . Feedback Blocked . | . . . . . . . . . Robot Schematics Acquired 3 | . . . . . 2 1 . . Robots Built . | . . . . . . . . . Authchips . | . . . . . . . . . Time . | . . . . . . . . . Total Robot Build Rating . | . . . . . . . . . Part Schematics Acquired . | . . . . . . . . . Parts Built . | . . . . . . . . . Authchips . | . . . . . . . . . Time . | . . . . . . . . . Total Part Build Rating . | . . . . . . . . . Parts Repaired . | . . . . . . . . . Time . | . . . . . . . . . Parts Recycled . | . . . . . . . . . Recycled Matter . | . . . . . . . . . Retrieved Matter . | . . . . . . . . . Retrieved Components 2 | . . . . . . 2 . . Parts Scanalyzed . | . . . . . . . . . Part Schematics Acquired . | . . . . . . . . . Parts Damaged . | . . . . . . . . . Bothacking | -11 -10 -10 -10 -9 -8 -7 -7 -7 ------------ Run | Yrd Mat Min Exi Min Mat Fac Low Low Used RIF Installer . | . . . . . . . . . Robots Hacked 1 | . 1 . . . . . . . Non-combat . | . . . . . . . . . Combat 1 | . 1 . . . . . . . Robot Hacks Applied 1 | . 1 . . . . . . . find_shortcuts 1 | . 1 . . . . . . . Relay Couplers Released 4 | . . . . . . 4 . . Programmers 4 | . . . . . . 4 . . Fabnet Peak Effective % . | . . . . . . . . . Robots Rewired . | . . . . . . . . . Allies Hacked . | . . . . . . . . . Hacks Repelled . | . . . . . . . . . Allies | -11 -10 -10 -10 -9 -8 -7 -7 -7 -------- Run | Yrd Mat Min Exi Min Mat Fac Low Low Total Allies 9 | . . 3 . . 2 3 . 1 Largest Group 3 | . . 3 . . 2 3 . 1 Highest-Rated Group 135 | . . 40 . . 32 93 . 135 Highest-Rated Ally 135 | . . 16 . . 16 31 . 135 Total Orders . | . . . . . . . . . Ally Attacks 58 | . . 17 . . 12 23 . 6 Total Damage 1014 | . . 153 . . 170 357 . 334 Kills 14 | . . 3 . . 3 3 . 5 Allies Corrupted . | . . . . . . . . . Allies Melted . | . . . . . . . . . Turrets Deployed 1 | . . . . . . . . 1 Intel | -11 -10 -10 -10 -9 -8 -7 -7 -7 ------- Run | Yrd Mat Min Exi Min Mat Fac Low Low Robot Analysis Total 7 | . 1 . . . 5 1 . . Derelict Logs Recovered 5 | . . 1 . 1 . . 1 2 Drone Launches . | . . . . . . . . . Drone Recoveries . | . . . . . . . . . Exploration | -11 -10 -10 -10 -9 -8 -7 -7 -7 ------------- Run | Yrd Mat Min Exi Min Mat Fac Low Low Turns Passed 2385 | 14 85 531 100 353 239 542 163 358 Spaces Moved 2627 | 21 49 531 171 401 254 501 198 501 Core 562 | 21 28 189 123 . . . . 201 Treads . | . . . . . . . . . Legs 363 | . 21 342 . . . . . . Wheels . | . . . . . . . . . Hover 1702 | . . . 48 401 254 501 198 300 Flight . | . . . . . . . . . Fastest Speed 50 | 50 50 50 50 80 80 80 80 50 Average Speed 79 | 50 80 95 58 80 80 80 80 67 Slowest Speed 120 | 50 120 120 80 80 80 80 80 80 Overloaded Moves . | . . . . . . . . . Propulsion Burnouts . | . . . . . . . . . Robots Hopped . | . . . . . . . . . Cave-ins Triggered . | . . . . . . . . . Exploration Rate (%) 42 | 3 21 84 58 77 22 18 37 64 Regions Visited 8 Branch Regions 5 Pre-discovered Areas 1 | . . . . . . . 1 . Known Exits Taken 2 | . . . . . 1 1 . . Unknown Exits Taken 6 | 1 1 1 1 1 . . 1 . Scrap Searched 7 | . . 1 . 4 . . . 2 Spaces Dug . | . . . . . . . . . Terrain Destroyed . | . . . . . . . . . Melee . | . . . . . . . . . Projectile . | . . . . . . . . . AOE . | . . . . . . . . . Terrain Rammed . | . . . . . . . . . Walls Destroyed . | . . . . . . . . . Machines Disabled . | . . . . . . . . . Actions | -11 -10 -10 -10 -9 -8 -7 -7 -7 --------- Run | Yrd Mat Min Exi Min Mat Fac Low Low Total 2906 | 24 73 556 170 432 289 641 202 519 Wait 258 | 4 3 25 . 32 36 141 5 12 Move 2619 | 20 48 530 170 400 253 500 197 501 Hop . | . . . . . . . . . Pick Up . | . . . . . . . . . Fast Attach . | . . . . . . . . . Attach . | . . . . . . . . . Detach . | . . . . . . . . . Swap . | . . . . . . . . . Drop 1 | . . . . . . . . 1 Fire 22 | . 22 . . . . . . . Melee . | . . . . . . . . . Ram 5 | . . . . . . . . 5 Kick . | . . . . . . . . . Crush . | . . . . . . . . . Escape Stasis . | . . . . . . . . . Rewire 1 | . . 1 . . . . . . Trap . | . . . . . . . . . Miscellaneous . | . . . . . . . . . Route ------- -11/Scrapyard -10/Materials -10/Mines (discovered 3 exits: [*Mat x2] / [*Exi]) -10/Exiles -9/Mines -8/Materials (discovered 3 exits: *Fac x3) -7/Factory (discovered 7 exits: *Fac x4 / Sto / *Low x2) -7/Lower Caves -7/Lower Caves (discovered 1 exit: *Fac) History --------- Turn | Location | Event 3 | -11/Scrapyard | Discovered new exit (range 16) 15 | -11/Scrapyard | Entered Materials 87 | -10/Materials | Discovered new exit (range 10) 100 | -10/Materials | Entered Mines 107 | -10/Mines | Received a Rocket Launcher from a helpful Derelict 123 | -10/Mines | Learned Materials emergency access door positions 129 | -10/Mines | Discovered new exit (range 5) 277 | -10/Mines | Assisted by bots powering up and referring to "LRC-V3" 322 | -10/Mines | Discovered new exit (range 7) 433 | -10/Mines | Discovered new exit (range 10) 461 | -10/Mines | Joined a pair of Derelicts in attacking an 0b10 outpost 618 | -10/Mines | Found a damaged Exp. Sensor Array with a note attached 628 | -10/Mines | Deemed a non-threat by the Exiles lab entrance 631 | -10/Mines | Entered Exiles 644 | -10/Exiles | Met 8R-AWN 653 | -10/Exiles | Met EX-HEX 669 | -10/Exiles | Met EX-BIN 674 | -10/Exiles | Aligned with FarCom system 675 | -10/Exiles | Given EX-Vault access code 687 | -10/Exiles | Met EX-DEC 693 | -10/Exiles | Took control of EX-DEC (ally) 722 | -10/Exiles | Discovered new exit (range 14) 731 | -10/Exiles | Left Exiles lab with Deploy-a-Sentry 731 | -10/Exiles | Entered Mines 829 | -9/Mines | Learned Materials stockpile data 842 | -9/Mines | Assembled infested the area 847 | -9/Mines | Assisted by a Guerilla fighting off Assembled 1070 | -9/Mines | Discovered new exit (range 14) 1084 | -9/Mines | Entered Materials 1097 | -8/Materials | Identified exit to Factory 1204 | -8/Materials | Garrison activated, responded to threat 1323 | -8/Materials | Entered Factory 1335 | -7/Factory | Identified exit to Factory 1335 | -7/Factory | Identified exit to Storage 1335 | -7/Factory | Identified exit to Lower Caves 1776 | -7/Factory | Allied Derelicts emerged from ambush trap array 1865 | -7/Factory | Entered Lower Caves 1928 | -7/Lower Caves | Attracted the attention of an 0b10 checkpoint 2019 | -7/Lower Caves | Discovered new exit (range 3) 2024 | -7/Lower Caves | Learned location of Zion (-6) 2028 | -7/Lower Caves | Entered another Lower Caves area 2039 | -7/Lower Caves | Discovered exit to Factory (range 4) 2041 | -7/Lower Caves | DAS Turret deployed 2163 | -7/Lower Caves | Learned Factory emergency access door positions 2249 | -7/Lower Caves | Attracted the attention of an 0b10 checkpoint 2284 | -7/Lower Caves | Lost 5 parts (1p4u) 2284 | -7/Lower Caves | Core integrity fell below 50% 2316 | -7/Lower Caves | Lost 7 parts (7u) 2372 | -7/Lower Caves | Core integrity fell below 20% 2386 | -7/Lower Caves | Destroyed by S-27 Virus with Autogun Last Messages --------------- 02251_ Hvy. Deuterium Engine destroyed. 02251_ EX Chip 2 destroyed. 02253_ EX Chip 1 destroyed. 02282_ Knocked back. 02283_ Cmb. Antigrav System severed. 02284_ Slammed into L-41 Fighter. 02285_ EX Chip 1 destroyed. 02285_ EX Chip 2 destroyed. 02285_ EX Chip 1 destroyed. 02285_ Imp. Armor Integrity Analyzer destroyed. 02285_ EX Chip 1 destroyed. 02285_ Knocked back. A strange signal echoes through the caves. 02360_ Penetrated by Slug. 02360_ EX Chip 2 destroyed. 02372_ Slammed into S-27 Virus. 02372_ EX Chip 2 destroyed. 02372_ Imp. Target Analyzer destroyed. 02379_ Acquired derelict log, extracted data. Data stored: Extension entrances (x1). Map ----- +----------------------------------------------------+ | ????????????????????????????????? ?????????? ! #?? | | ???????????????????????????????? #####????? ?? | | ??????????????????????????????? ????? ?? | | ??????????????????????????????? ????? #?? | | ??????????????????????????????? #?????# #?? | | ???????????????????????????????? ####### #?? | | ????????????????????????????????? ## #?? | | ??????????????????????????????????? # #?? | | ????????????????????????????????????# # #?? | | ???????????????????#???????????????## ##? | | ??????????????????? ??????????????## ## | | ????????????????### ?????####?##### # | | ???????????????## #????## ### # | | ???????????????# ##??## | | ???????????????# #?## ##### | | ???????????????# #?# #???## | | ???????????????# ### #????# | | ????????????????# #????# | | ????????????????## #? | | ?????????????????# ###### ### ## | | ????????????????## ####?# ##?# ### ### | | ???????????????## #### ##?# ???# ##?## | | ???????????????# #### ##?# ????# #??## | | ??????????###### ## #??#?????# #??# | | ?????????## ####???????? #??# ## | | ????????## ####c#?????????? #??## ### | | ????????# ## #?????????? ????###?? | | ????????# # ### #??????????? ???????? | | ????????# ## s #??????????? #??????# | | ????????## ## # #????????????????????# | | ?????????###### ##### ##???????????????????# | | ??????????????## #???# # ??????????????????# | | ???????????????## #???## #?????????????????## | | ????????????????###?????### ?????????????????### | | ???????????????????????????####??????????????????? | | ?????????????????????????????????????????????????? | | ?????????????????????????????????????????????????? | | ?????????????????????????????????????????????????? | | ?????????????????????????????????????????????????? | | ?????????????????????????????????????????????????? | | ?????????????????????????????????????????????????? | | ?????????????????????????????????????????????????? | | ?????????????????????????????????????????????????? | | ?????????????????????????????????????????????????? | | ?????????????????????????????????????????????????? | | ?????????????????????????????????????????????????? | | ?????????????????????????????????????????????????? | | ?????????????????????????????????????????????????? | | ?????????????????????????????????????????????????? | | ?????????????????????????????????????????????????? | +----------------------------------------------------+ Best States ------------- Heat Dissipation 25 Energy Generation 23 Energy Capacity 235 Sight Range 16 Terrain Scan Density 10 Resistance: EM 90 Evasion (%) 55 Launcher Accuracy 40 Target Analysis 6 Core Analysis 8 Armor Integrity Analysis 40 Offensive Hacking 70 Defensive Hacking 56 Item Schematics ----------------- None Robot Schematics ------------------ G-47 Trooper | -8/Materials | Hacked Y-54 Guardian | -8/Materials | Hacked G-50 Soldier | -7/Factory | Hacked Fabricated ------------ Nothing Alien Tech Used ----------------- None Achievements -------------- None Challenges ------------ None Polymind | -11 -10 -10 -10 -9 -8 -7 -7 -7 ---------- Run | Yrd Mat Min Exi Min Mat Fac Low Low Hosts 2 | . 1 . 1 . . . . . Combat Hostiles 1 | . 1 . . . . . . . Allies 1 | . . . 1 . . . . . Unique Host Classes 2 | . 1 . 1 . . . . . Average Host Suspicion 81 | . 99 66 . 99 79 78 64 99 Unsuspicious Activity 16 | . . . 16 . . . . . Returns to Shadow . | . . . . . . . . . Fuzzy Dispatches . | . . . . . . . . . Protomatter Created 404 | . 4 67 . 69 47 47 112 58 Used 48 | . 15 . 33 . . . . . Decayed 94 | . . . . 46 15 20 . 13 Highest Spend 33 | . 15 . 33 . . . . . Top 5 Hosts by Kills: EX-DEC (-10/Exiles: 16) G-34 Mercenary (-10/Materials: 2) Game ------ Seed ThiefElectronBooster Manual? 0 Play Time 00:26:02 Cumulative 56.8 hours Start 2024.12.30 @ 02:05:45 End 2024.12.30 @ 02:34:47 Sessions 1 Manual Loads 0 Difficulty Rogue Special Mode Winter2022/Polymind Game No. 57 Rogue 57 Adventurer 0 Explorer 0 Win Type - Total 1 Types 0/0/0/1/0/0/0/0/0 Lore% 43 Gallery% 43 Achievement% 44 Wizard Run 0 Options --------- Layout 0 ASCII 0 Keyboard 1 Movement Numpad Keybinds 0 Fullscreen 1 Font 24/Smallcaps Map View 76x56 Zoom Use 0% Tactical HUD 1 Map Filters NONE Filters NONE Steam 1 RUN: e6b73fd7-f9e5-44c8-92d6-ee348ae301c7